[Event "Early-Titled-Tuesday-Blitz-May-07-2024"]
[Site "Chess.com"]
[Date "2024.05.07"]
[Round "6"]
[White "NovakRatko"]
[Black "NowInChess"]
[Result "1-0"]
[WhiteElo "2428"]
[BlackElo "2239"]
[TimeControl "180+1"]
[EndTime "9:11:35 PDT"]
[Termination "NovakRatko won on time"]

1. d4 {[%clk 0:02:59.5]} 1... Nf6 {[%clk 0:03:00.1]} 2. c4 {[%clk 0:02:59.7]}
2... c5 {[%clk 0:02:59.9]} 3. dxc5 {[%clk 0:02:59.2]} 3... e6 {[%clk 0:02:58]}
4. Be3 {[%clk 0:02:59.3]} 4... Na6 {[%clk 0:02:54.2]} 5. a3 {[%clk 0:02:58.9]}
5... Bxc5 {[%clk 0:02:50.2]} 6. Bxc5 {[%clk 0:02:58.9]} 6... Nxc5 {[%clk
0:02:51]} 7. b4 {[%clk 0:02:59.5]} 7... Nce4 {[%clk 0:02:49.9]} 8. f3 {[%clk
0:02:59.4]} 8... Ng4 {[%clk 0:02:32.9]} 9. Qd4 {[%clk 0:02:50.4]} 9... Qh4+
{[%clk 0:02:07.8]} 10. g3 {[%clk 0:02:50]} 10... Nxg3 {[%clk 0:01:58.5]} 11.
Qxg4 {[%clk 0:02:09.8]} 11... Qf6 {[%clk 0:01:58.6]} 12. hxg3 {[%clk 0:01:47.3]}
12... Qxa1 {[%clk 0:01:57.9]} 13. Qe4 {[%clk 0:01:47.7]} 13... d5 {[%clk
0:01:38.9]} 14. cxd5 {[%clk 0:01:46.4]} 14... Qb2 {[%clk 0:01:31.3]} 15. e3
{[%clk 0:01:32.5]} 15... Qc1+ {[%clk 0:01:22]} 16. Kf2 {[%clk 0:01:28.9]} 16...
f5 {[%clk 0:01:17.4]} 17. Qd3 {[%clk 0:01:18.1]} 17... O-O {[%clk 0:01:11.1]}
18. Ne2 {[%clk 0:01:16.8]} 18... Qc7 {[%clk 0:01:02.6]} 19. d6 {[%clk
0:01:15.6]} 19... Qd7 {[%clk 0:00:51.2]} 20. Bg2 {[%clk 0:01:15.4]} 20... Rd8
{[%clk 0:00:50.7]} 21. Rd1 {[%clk 0:01:15.2]} 21... a5 {[%clk 0:00:43.5]} 22. b5
{[%clk 0:01:14.3]} 22... b6 {[%clk 0:00:42.2]} 23. f4 {[%clk 0:01:09.3]} 23...
Bb7 {[%clk 0:00:41.9]} 24. Bxb7 {[%clk 0:01:09.4]} 24... Qxb7 {[%clk 0:00:42.8]}
25. Qc4 {[%clk 0:01:05.7]} 25... Kf7 {[%clk 0:00:28.2]} 26. Qc6 {[%clk 0:01:00]}
26... Rd7 {[%clk 0:00:28.2]} 27. Nd4 {[%clk 0:00:44.9]} 27... Rad8 {[%clk
0:00:16]} 28. Qxb7 {[%clk 0:00:44.7]} 28... Rxb7 {[%clk 0:00:16]} 29. Nc6 {[%clk
0:00:45.1]} 29... Rdd7 {[%clk 0:00:11.4]} 30. Ne5+ {[%clk 0:00:45]} 30... Ke8
{[%clk 0:00:11]} 31. Nxd7 {[%clk 0:00:45.4]} 31... Kxd7 {[%clk 0:00:11.6]} 32.
Nc3 {[%clk 0:00:42]} 32... Rb8 {[%clk 0:00:11.4]} 33. Rd3 {[%clk 0:00:34]} 33...
h6 {[%clk 0:00:04.6]} 34. Kf3 {[%clk 0:00:33.3]} 34... g5 {[%clk 0:00:04.8]} 35.
e4 {[%clk 0:00:33]} 35... g4+ {[%clk 0:00:04.5]} 36. Ke3 {[%clk 0:00:33]} 36...
h5 {[%clk 0:00:04.6]} 37. e5 {[%clk 0:00:19.7]} 37... Rc8 {[%clk 0:00:02.3]} 38.
Na4 {[%clk 0:00:19.6]} 38... Rb8 {[%clk 0:00:02.7]} 39. Rc3 {[%clk 0:00:19.8]}
39... Rb7 {[%clk 0:00:02.9]} 40. Rc6 {[%clk 0:00:19.2]} 40... Kd8 {[%clk
0:00:02.2]} 41. Nxb6 {[%clk 0:00:19.5]} 41... Rb8 {[%clk 0:00:01.7]} 42. d7
{[%clk 0:00:19.7]} 42... Rb7 {[%clk 0:00:01.2]} 43. Rxe6 {[%clk 0:00:20]} 1-0

[Event "Early-Titled-Tuesday-Blitz-May-07-2024"]
[Site "Chess.com"]
[Date "2024.05.07"]
[Round "6"]
[White "RusPakhom"]
[Black "laysa_latifah"]
[Result "0-1"]
[WhiteElo "2352"]
[BlackElo "2337"]
[TimeControl "180+1"]
[EndTime "9:11:35 PDT"]
[Termination "laysa_latifah won by resignation"]

1. d4 {[%clk 0:03:00.9]} 1... Nf6 {[%clk 0:02:59.1]} 2. c4 {[%clk 0:02:59.9]}
2... e6 {[%clk 0:02:59.5]} 3. Nc3 {[%clk 0:02:59.9]} 3... Bb4 {[%clk 0:02:58.4]}
4. e3 {[%clk 0:03:00.2]} 4... O-O {[%clk 0:02:46.3]} 5. Bd3 {[%clk 0:03:00.2]}
5... d5 {[%clk 0:02:41.3]} 6. a3 {[%clk 0:02:59.9]} 6... Bxc3+ {[%clk
0:02:34.3]} 7. bxc3 {[%clk 0:03:00.8]} 7... c5 {[%clk 0:02:33.6]} 8. cxd5 {[%clk
0:03:00.3]} 8... exd5 {[%clk 0:02:26.6]} 9. Ne2 {[%clk 0:02:55.2]} 9... Nc6
{[%clk 0:02:25.7]} 10. O-O {[%clk 0:02:54.8]} 10... Rb8 {[%clk 0:02:21.5]} 11.
Rb1 {[%clk 0:02:53]} 11... c4 {[%clk 0:02:19.6]} 12. Bc2 {[%clk 0:02:52]} 12...
b5 {[%clk 0:02:18.1]} 13. Ng3 {[%clk 0:02:47.5]} 13... a5 {[%clk 0:02:16.6]} 14.
f3 {[%clk 0:02:36.9]} 14... b4 {[%clk 0:02:02.3]} 15. axb4 {[%clk 0:02:35.5]}
15... axb4 {[%clk 0:02:03.2]} 16. cxb4 {[%clk 0:02:35.4]} 16... Rxb4 {[%clk
0:01:44.6]} 17. Ra1 {[%clk 0:02:09.9]} 17... Re8 {[%clk 0:01:39.1]} 18. Re1
{[%clk 0:01:54.2]} 18... Rb8 {[%clk 0:01:26.3]} 19. Bd2 {[%clk 0:01:50.1]} 19...
Bd7 {[%clk 0:01:12.9]} 20. Bc3 {[%clk 0:01:48]} 20... Nb4 {[%clk 0:00:38.4]} 21.
Bb1 {[%clk 0:01:41.2]} 21... Qc7 {[%clk 0:00:33.7]} 22. e4 {[%clk 0:01:38.3]}
22... g6 {[%clk 0:00:17]} 23. e5 {[%clk 0:01:31.4]} 23... Nh5 {[%clk 0:00:16.9]}
24. Nxh5 {[%clk 0:01:30.5]} 24... gxh5 {[%clk 0:00:17.8]} 25. Bxb4 {[%clk
0:01:26.4]} 25... Rxb4 {[%clk 0:00:18.7]} 26. Qc2 {[%clk 0:01:26.5]} 26... Kf8
{[%clk 0:00:17.5]} 27. Qxh7 {[%clk 0:01:24.7]} 27... Qb6 {[%clk 0:00:17.7]} 28.
Rd1 {[%clk 0:00:55.9]} 28... Be6 {[%clk 0:00:17.1]} 29. Qh8+ {[%clk 0:00:50.7]}
29... Ke7 {[%clk 0:00:17.2]} 30. Qf6+ {[%clk 0:00:44.3]} 30... Kd7 {[%clk
0:00:17.2]} 31. f4 {[%clk 0:00:44.1]} 31... Bg4 {[%clk 0:00:14.6]} 32. Qxf7+
{[%clk 0:00:41.3]} 32... Re7 {[%clk 0:00:15]} 33. Qxd5+ {[%clk 0:00:41]} 33...
Kc7 {[%clk 0:00:15.5]} 34. Be4 {[%clk 0:00:34.8]} 34... Bxd1 {[%clk 0:00:14]}
35. Rxd1 {[%clk 0:00:32.2]} 35... Rd7 {[%clk 0:00:14.4]} 36. Qg8 {[%clk
0:00:18.5]} 36... Rxd4 {[%clk 0:00:13.1]} 37. Qh7+ {[%clk 0:00:05.9]} 37... Rd7+
{[%clk 0:00:12.6]} 0-1

[Event "Early-Titled-Tuesday-Blitz-May-07-2024"]
[Site "Chess.com"]
[Date "2024.05.07"]
[Round "6"]
[White "Oleg_Papayan"]
[Black "NMChessToImpress"]
[Result "1-0"]
[WhiteElo "2674"]
[BlackElo "2260"]
[TimeControl "180+1"]
[EndTime "9:11:36 PDT"]
[Termination "Oleg_Papayan won by resignation"]

1. e4 {[%clk 0:03:00.9]} 1... e6 {[%clk 0:02:58.3]} 2. d4 {[%clk 0:03:00.9]}
2... d5 {[%clk 0:02:58.4]} 3. Nc3 {[%clk 0:03:01.4]} 3... Bb4 {[%clk 0:02:58.1]}
4. Ne2 {[%clk 0:03:00.9]} 4... dxe4 {[%clk 0:02:57.4]} 5. a3 {[%clk 0:03:00.6]}
5... Be7 {[%clk 0:02:56.7]} 6. Nxe4 {[%clk 0:03:00.8]} 6... Nf6 {[%clk
0:02:57.3]} 7. Nxf6+ {[%clk 0:03:00.8]} 7... Bxf6 {[%clk 0:02:58.2]} 8. Be3
{[%clk 0:03:01.3]} 8... Nc6 {[%clk 0:02:56.5]} 9. Qd2 {[%clk 0:02:58.8]} 9... e5
{[%clk 0:02:51.9]} 10. O-O-O {[%clk 0:02:45.2]} 10... exd4 {[%clk 0:02:48.8]}
11. Nxd4 {[%clk 0:02:46.1]} 11... Nxd4 {[%clk 0:02:47.5]} 12. Bxd4 {[%clk
0:02:46.3]} 12... Qxd4 {[%clk 0:02:46.3]} 13. Qxd4 {[%clk 0:02:18.3]} 13... Bxd4
{[%clk 0:02:47.2]} 14. Rxd4 {[%clk 0:02:18.9]} 14... Be6 {[%clk 0:02:43.2]} 15.
Bc4 {[%clk 0:02:03.2]} 15... Bxc4 {[%clk 0:02:42.8]} 16. Rxc4 {[%clk 0:02:04.1]}
16... O-O-O {[%clk 0:02:43.1]} 17. Ra4 {[%clk 0:01:57.4]} 17... a6 {[%clk
0:02:38.4]} 18. Rf4 {[%clk 0:01:51.6]} 18... Rd7 {[%clk 0:02:23.1]} 19. Re1
{[%clk 0:01:50.4]} 19... g6 {[%clk 0:02:00.7]} 20. Re3 {[%clk 0:01:40]} 20...
Rhd8 {[%clk 0:01:55.6]} 21. b4 {[%clk 0:01:39.7]} 21... f5 {[%clk 0:01:53.5]}
22. h4 {[%clk 0:01:30.5]} 22... Rd1+ {[%clk 0:01:44.9]} 23. Kb2 {[%clk
0:01:30.4]} 23... R1d4 {[%clk 0:01:39.8]} 24. Rxd4 {[%clk 0:01:18.8]} 24... Rxd4
{[%clk 0:01:40.7]} 25. h5 {[%clk 0:01:14.9]} 25... Kd7 {[%clk 0:01:19.5]} 26.
hxg6 {[%clk 0:00:57.4]} 26... hxg6 {[%clk 0:01:20.4]} 27. Rg3 {[%clk 0:00:55.6]}
27... Rd2 {[%clk 0:01:04.5]} 28. f3 {[%clk 0:00:47.6]} 28... Rd6 {[%clk
0:00:59.2]} 29. c4 {[%clk 0:00:48]} 29... Ke7 {[%clk 0:00:53.9]} 30. Kc3 {[%clk
0:00:47.5]} 30... Kf6 {[%clk 0:00:51.3]} 31. Rh3 {[%clk 0:00:47.1]} 31... Re6
{[%clk 0:00:44.4]} 32. Rh7 {[%clk 0:00:45.2]} 32... Re3+ {[%clk 0:00:41.9]} 33.
Kd4 {[%clk 0:00:43.7]} 33... Re2 {[%clk 0:00:27.1]} 34. Rxc7 {[%clk 0:00:42.2]}
34... Rxg2 {[%clk 0:00:27.2]} 35. Rxb7 {[%clk 0:00:42.7]} 35... f4 {[%clk
0:00:20.5]} 36. c5 {[%clk 0:00:41.1]} 36... g5 {[%clk 0:00:15.8]} 37. Rb6+
{[%clk 0:00:38.1]} 37... Kf5 {[%clk 0:00:15.7]} 38. c6 {[%clk 0:00:37.3]} 38...
g4 {[%clk 0:00:15.1]} 39. fxg4+ {[%clk 0:00:36.9]} 39... Kxg4 {[%clk 0:00:15.4]}
40. Rxa6 {[%clk 0:00:20.8]} 40... f3 {[%clk 0:00:15.1]} 41. c7 {[%clk
0:00:20.1]} 41... Rc2 {[%clk 0:00:14.8]} 42. Rg6+ {[%clk 0:00:19]} 42... Kf5
{[%clk 0:00:14.1]} 43. Rg8 {[%clk 0:00:17.3]} 43... Ke6 {[%clk 0:00:13]} 44.
c8=Q+ {[%clk 0:00:16.6]} 44... Rxc8 {[%clk 0:00:09.7]} 45. Rxc8 {[%clk
0:00:17.5]} 45... f2 {[%clk 0:00:07.5]} 46. Rc1 {[%clk 0:00:17.5]} 46... f1=Q
{[%clk 0:00:07.1]} 47. Rxf1 {[%clk 0:00:17.4]} 1-0

[Event "Early-Titled-Tuesday-Blitz-May-07-2024"]
[Site "Chess.com"]
[Date "2024.05.07"]
[Round "6"]
[White "DominguezOnYoutube"]
[Black "nochewycandy"]
[Result "1-0"]
[WhiteElo "2974"]
[BlackElo "2813"]
[TimeControl "180+1"]
[EndTime "9:11:37 PDT"]
[Termination "DominguezOnYoutube won by resignation"]

1. e4 {[%clk 0:03:00.9]} 1... e5 {[%clk 0:02:59.2]} 2. Nf3 {[%clk 0:03:00.7]}
2... Nc6 {[%clk 0:02:59.9]} 3. Bb5 {[%clk 0:03:00.3]} 3... a6 {[%clk 0:03:00.5]}
4. Ba4 {[%clk 0:03:00.4]} 4... f5 {[%clk 0:03:01.2]} 5. d4 {[%clk 0:02:58.9]}
5... exd4 {[%clk 0:03:01.4]} 6. e5 {[%clk 0:02:59]} 6... b5 {[%clk 0:03:02.1]}
7. Bb3 {[%clk 0:02:59.3]} 7... Bb7 {[%clk 0:03:03]} 8. O-O {[%clk 0:02:42.5]}
8... Na5 {[%clk 0:03:03.3]} 9. Nxd4 {[%clk 0:02:21.3]} 9... c5 {[%clk
0:03:03.5]} 10. Bxg8 {[%clk 0:02:19.7]} 10... cxd4 {[%clk 0:03:02.3]} 11. Bb3
{[%clk 0:02:18.6]} 11... Nxb3 {[%clk 0:02:55.1]} 12. axb3 {[%clk 0:02:18.4]}
12... Qh4 {[%clk 0:02:56]} 13. Nd2 {[%clk 0:02:11.8]} 13... Bc5 {[%clk 0:02:48]}
14. Nf3 {[%clk 0:02:09.7]} 14... Qg4 {[%clk 0:02:44.7]} 15. h3 {[%clk
0:02:01.8]} 15... Qg6 {[%clk 0:02:44.8]} 16. Bf4 {[%clk 0:01:51.8]} 16... O-O
{[%clk 0:02:42.1]} 17. Kh2 {[%clk 0:01:49.4]} 17... h6 {[%clk 0:02:39.2]} 18.
Rg1 {[%clk 0:01:46.9]} 18... Qb6 {[%clk 0:02:36.6]} 19. b4 {[%clk 0:01:31]}
19... Bxb4 {[%clk 0:02:34.5]} 20. Nxd4 {[%clk 0:01:31.5]} 20... g5 {[%clk
0:02:24.9]} 21. Bc1 {[%clk 0:01:30.9]} 21... Rae8 {[%clk 0:02:18]} 22. f4 {[%clk
0:01:27.1]} 22... Bc5 {[%clk 0:02:04.2]} 23. c3 {[%clk 0:01:25.1]} 23... Qg6
{[%clk 0:02:01.3]} 24. b4 {[%clk 0:01:23.3]} 24... Bb6 {[%clk 0:01:56.4]} 25.
Be3 {[%clk 0:01:13.2]} 25... Kh7 {[%clk 0:01:51.9]} 26. Qd2 {[%clk 0:01:08.5]}
26... g4 {[%clk 0:01:45.4]} 27. g3 {[%clk 0:01:05.6]} 27... gxh3 {[%clk
0:01:42.4]} 28. Rae1 {[%clk 0:00:57.2]} 28... Qg4 {[%clk 0:01:41.3]} 29. Nc2
{[%clk 0:00:53.1]} 29... Bd8 {[%clk 0:01:25]} 30. Bc5 {[%clk 0:00:52.2]} 30...
Rf7 {[%clk 0:01:22.3]} 31. Ne3 {[%clk 0:00:51.5]} 31... Qg6 {[%clk 0:01:22.7]}
32. Qf2 {[%clk 0:00:39.7]} 32... Rg8 {[%clk 0:01:18.9]} 33. Rd1 {[%clk
0:00:39.3]} 33... Rfg7 {[%clk 0:01:16.5]} 34. Rd6 {[%clk 0:00:38.3]} 34... Qh5
{[%clk 0:01:10.6]} 35. Rdd1 {[%clk 0:00:29.8]} 35... Bf3 {[%clk 0:00:41.8]} 36.
Rde1 {[%clk 0:00:23.1]} 36... Be4 {[%clk 0:00:41.8]} 37. Rd1 {[%clk 0:00:22.8]}
37... Bf3 {[%clk 0:00:42]} 38. Rd2 {[%clk 0:00:21.3]} 38... Bh4 {[%clk
0:00:36.3]} 39. Nf1 {[%clk 0:00:21.1]} 39... Bg2 {[%clk 0:00:15.1]} 40. gxh4
{[%clk 0:00:20.5]} 40... Bxf1 {[%clk 0:00:15.8]} 41. Rxg7+ {[%clk 0:00:20.1]}
41... Rxg7 {[%clk 0:00:16.7]} 42. Qxf1 {[%clk 0:00:20.4]} 42... Qg4 {[%clk
0:00:16]} 43. Qf2 {[%clk 0:00:13.8]} 43... h5 {[%clk 0:00:09]} 44. Rd3 {[%clk
0:00:13.1]} 44... Qg2+ {[%clk 0:00:03.6]} 45. Qxg2 {[%clk 0:00:12.9]} 45...
Rxg2+ {[%clk 0:00:04.4]} 46. Kxh3 {[%clk 0:00:13.2]} 46... Rc2 {[%clk 0:00:04]}
47. Rxd7+ {[%clk 0:00:13.2]} 1-0

[Event "Early-Titled-Tuesday-Blitz-May-07-2024"]
[Site "Chess.com"]
[Date "2024.05.07"]
[Round "6"]
[White "catalin009"]
[Black "CSB7"]
[Result "0-1"]
[WhiteElo "2561"]
[BlackElo "2774"]
[TimeControl "180+1"]
[EndTime "9:11:37 PDT"]
[Termination "CSB7 won on time"]

1. e4 {[%clk 0:03:00.9]} 1... c5 {[%clk 0:03:00.5]} 2. Nf3 {[%clk 0:03:01]} 2...
Nc6 {[%clk 0:03:01.2]} 3. d4 {[%clk 0:03:01.2]} 3... cxd4 {[%clk 0:03:02.1]} 4.
Nxd4 {[%clk 0:03:01.9]} 4... Qb6 {[%clk 0:03:02.7]} 5. Nb3 {[%clk 0:03:00.4]}
5... Nf6 {[%clk 0:03:02.3]} 6. Nc3 {[%clk 0:02:59.7]} 6... e6 {[%clk 0:03:02.5]}
7. Be3 {[%clk 0:02:58.9]} 7... Qc7 {[%clk 0:03:01.9]} 8. Bd3 {[%clk 0:02:59.1]}
8... a6 {[%clk 0:02:59.5]} 9. f4 {[%clk 0:02:58.9]} 9... b5 {[%clk 0:02:53.5]}
10. a3 {[%clk 0:02:57]} 10... d6 {[%clk 0:02:48.8]} 11. Qf3 {[%clk 0:02:56.7]}
11... Bb7 {[%clk 0:02:43.9]} 12. O-O {[%clk 0:02:56.4]} 12... Be7 {[%clk
0:02:43.9]} 13. Kh1 {[%clk 0:02:52.3]} 13... O-O {[%clk 0:02:43.5]} 14. Qh3
{[%clk 0:02:51.1]} 14... b4 {[%clk 0:02:19.5]} 15. e5 {[%clk 0:02:49.6]} 15...
dxe5 {[%clk 0:01:55.8]} 16. fxe5 {[%clk 0:02:49.6]} 16... Nxe5 {[%clk
0:01:55.7]} 17. Bf4 {[%clk 0:01:10.3]} 17... g6 {[%clk 0:01:09]} 18. Rae1 {[%clk
0:01:02.7]} 18... Bd6 {[%clk 0:01:08.2]} 19. axb4 {[%clk 0:00:44]} 19... Nxd3
{[%clk 0:00:57.2]} 20. Bxd6 {[%clk 0:00:39.3]} 20... Qxd6 {[%clk 0:00:58.1]} 21.
Rd1 {[%clk 0:00:16.3]} 21... Qxb4 {[%clk 0:00:25.4]} 22. Rxd3 {[%clk 0:00:10.8]}
22... Qe7 {[%clk 0:00:24.5]} 23. Qh4 {[%clk 0:00:07.9]} 23... Nd5 {[%clk
0:00:24.3]} 24. Qxe7 {[%clk 0:00:08.1]} 24... Nxe7 {[%clk 0:00:25.2]} 25. Rd7
{[%clk 0:00:08.7]} 25... Bxg2+ {[%clk 0:00:18.1]} 26. Kxg2 {[%clk 0:00:08.5]}
26... Nf5 {[%clk 0:00:19]} 27. Nc5 {[%clk 0:00:07.8]} 27... Ne3+ {[%clk
0:00:18.9]} 28. Kf2 {[%clk 0:00:08.1]} 28... Nxf1 {[%clk 0:00:19.5]} 29. Kxf1
{[%clk 0:00:09]} 29... Rfd8 {[%clk 0:00:13.5]} 30. Rb7 {[%clk 0:00:03.8]} 30...
Rd2 {[%clk 0:00:10.7]} 31. N3e4 {[%clk 0:00:02.4]} 31... Rxc2 {[%clk 0:00:10.5]}
32. Nd7 {[%clk 0:00:02.4]} 32... Rd8 {[%clk 0:00:04.3]} 33. b4 {[%clk
0:00:02.3]} 33... Rb2 {[%clk 0:00:03.4]} 34. Nec5 {[%clk 0:00:02]} 34... h5
{[%clk 0:00:02.6]} 35. Nxa6 {[%clk 0:00:02.2]} 35... Rxh2 {[%clk 0:00:02.5]} 36.
Nac5 {[%clk 0:00:02.3]} 36... Ra8 {[%clk 0:00:03]} 37. Nf6+ {[%clk 0:00:01.7]}
37... Kg7 {[%clk 0:00:02.9]} 0-1

[Event "Early-Titled-Tuesday-Blitz-May-07-2024"]
[Site "Chess.com"]
[Date "2024.05.07"]
[Round "6"]
[White "Slovineanu"]
[Black "SuanTiltado"]
[Result "1-0"]
[WhiteElo "2455"]
[BlackElo "2256"]
[TimeControl "180+1"]
[EndTime "9:11:37 PDT"]
[Termination "Slovineanu won on time"]

1. e4 {[%clk 0:03:00.1]} 1... c6 {[%clk 0:03:00.4]} 2. d4 {[%clk 0:02:59.5]}
2... d5 {[%clk 0:03:01.3]} 3. e5 {[%clk 0:02:59.6]} 3... Bf5 {[%clk 0:03:01]} 4.
Nc3 {[%clk 0:02:55.2]} 4... e6 {[%clk 0:03:01.4]} 5. g4 {[%clk 0:02:55.2]} 5...
Bg6 {[%clk 0:03:01.9]} 6. Nge2 {[%clk 0:02:53.9]} 6... c5 {[%clk 0:03:01.9]} 7.
h4 {[%clk 0:02:53.3]} 7... h5 {[%clk 0:03:00.4]} 8. Nf4 {[%clk 0:02:53.2]} 8...
Bh7 {[%clk 0:03:01]} 9. Nxh5 {[%clk 0:02:46.3]} 9... Nc6 {[%clk 0:03:00]} 10.
Be3 {[%clk 0:02:41.4]} 10... Qb6 {[%clk 0:02:49.4]} 11. dxc5 {[%clk 0:01:52.7]}
11... Qxb2 {[%clk 0:02:26.3]} 12. Nb5 {[%clk 0:01:51.6]} 12... Nb4 {[%clk
0:01:40]} 13. Rc1 {[%clk 0:01:11.1]} 13... Nxc2+ {[%clk 0:01:32.8]} 14. Rxc2
{[%clk 0:01:10.1]} 14... Bxc2 {[%clk 0:01:32.6]} 15. Qc1 {[%clk 0:01:04.2]}
15... Qxc1+ {[%clk 0:01:25.7]} 16. Bxc1 {[%clk 0:01:03.8]} 16... Rc8 {[%clk
0:01:15.3]} 17. Nd6+ {[%clk 0:00:59.9]} 17... Bxd6 {[%clk 0:01:14.3]} 18. cxd6
{[%clk 0:00:59.1]} 18... g6 {[%clk 0:01:09]} 19. Bb5+ {[%clk 0:00:56]} 19... Kf8
{[%clk 0:01:07.7]} 20. d7 {[%clk 0:00:50.9]} 20... Rd8 {[%clk 0:01:04.6]} 21.
Ba3+ {[%clk 0:00:47.1]} 21... Ne7 {[%clk 0:01:05]} 22. Nf6 {[%clk 0:00:44.8]}
22... a6 {[%clk 0:01:04.3]} 23. Be2 {[%clk 0:00:40.5]} 23... Ba4 {[%clk
0:01:04.4]} 24. h5 {[%clk 0:00:34.2]} 24... Bxd7 {[%clk 0:01:00.7]} 25. h6
{[%clk 0:00:27.4]} 25... Bc6 {[%clk 0:00:39.1]} 26. g5 {[%clk 0:00:25.4]} 26...
Rd7 {[%clk 0:00:19.8]} 27. Kd2 {[%clk 0:00:22]} 27... Rc7 {[%clk 0:00:19.2]} 28.
Bd6 {[%clk 0:00:18.4]} 28... Rc8 {[%clk 0:00:17.6]} 29. Rc1 {[%clk 0:00:18.9]}
29... Ra8 {[%clk 0:00:13.9]} 30. a4 {[%clk 0:00:14.8]} 30... Rc8 {[%clk
0:00:13]} 31. a5 {[%clk 0:00:14.7]} 31... Ra8 {[%clk 0:00:13.5]} 32. Ke3 {[%clk
0:00:13.3]} 32... Rc8 {[%clk 0:00:13.9]} 33. Kd4 {[%clk 0:00:13.6]} 33... Ra8
{[%clk 0:00:08.7]} 34. f4 {[%clk 0:00:13.3]} 34... Rd8 {[%clk 0:00:08.7]} 35.
Rc3 {[%clk 0:00:11.4]} 35... Rxd6 {[%clk 0:00:07.6]} 36. exd6 {[%clk 0:00:10.9]}
36... Nf5+ {[%clk 0:00:08.5]} 37. Ke5 {[%clk 0:00:10]} 37... d4 {[%clk
0:00:01.4]} 38. Rc1 {[%clk 0:00:08.5]} 1-0

[Event "Early-Titled-Tuesday-Blitz-May-07-2024"]
[Site "Chess.com"]
[Date "2024.05.07"]
[Round "6"]
[White "FontVella8"]
[Black "ubdip"]
[Result "1-0"]
[WhiteElo "2686"]
[BlackElo "2512"]
[TimeControl "180+1"]
[EndTime "9:11:41 PDT"]
[Termination "FontVella8 won on time"]

1. e4 {[%clk 0:02:29.3]} 1... c5 {[%clk 0:02:58.4]} 2. Nf3 {[%clk 0:02:29.3]}
2... Nc6 {[%clk 0:02:59.1]} 3. d4 {[%clk 0:02:29.7]} 3... cxd4 {[%clk 0:03:00]}
4. Nxd4 {[%clk 0:02:30.5]} 4... Qb6 {[%clk 0:02:58.1]} 5. Nb3 {[%clk 0:02:29.6]}
5... Nf6 {[%clk 0:02:55.8]} 6. Nc3 {[%clk 0:02:29.7]} 6... e6 {[%clk 0:02:55.8]}
7. Be3 {[%clk 0:02:29.5]} 7... Qc7 {[%clk 0:02:56.4]} 8. a3 {[%clk 0:02:28.4]}
8... a6 {[%clk 0:02:54.7]} 9. f4 {[%clk 0:02:28.4]} 9... d6 {[%clk 0:02:52.7]}
10. Qf3 {[%clk 0:02:28]} 10... Be7 {[%clk 0:02:52]} 11. g4 {[%clk 0:02:27]}
11... Nd7 {[%clk 0:02:51.2]} 12. O-O-O {[%clk 0:02:25.6]} 12... Nc5 {[%clk
0:02:48.9]} 13. Kb1 {[%clk 0:02:19.5]} 13... Nxb3 {[%clk 0:02:41.3]} 14. cxb3
{[%clk 0:02:19.3]} 14... b5 {[%clk 0:02:41.8]} 15. b4 {[%clk 0:02:17.5]} 15...
Bb7 {[%clk 0:02:40.9]} 16. g5 {[%clk 0:02:16.9]} 16... h6 {[%clk 0:02:26.2]} 17.
h4 {[%clk 0:02:15.5]} 17... hxg5 {[%clk 0:02:20]} 18. hxg5 {[%clk 0:02:15.1]}
18... O-O-O {[%clk 0:02:15.7]} 19. Rxh8 {[%clk 0:02:12.3]} 19... Rxh8 {[%clk
0:02:16.6]} 20. Rc1 {[%clk 0:02:12.8]} 20... Kb8 {[%clk 0:02:14.7]} 21. Nd5
{[%clk 0:02:08.9]} 21... Qd8 {[%clk 0:01:53.2]} 22. Bb6 {[%clk 0:02:02.2]} 22...
Qd7 {[%clk 0:01:52.9]} 23. Nxe7 {[%clk 0:01:43.2]} 23... Qxe7 {[%clk 0:01:53.8]}
24. Qd3 {[%clk 0:01:39.3]} 24... Rh4 {[%clk 0:01:17.1]} 25. f5 {[%clk
0:01:21.7]} 25... Ne5 {[%clk 0:01:10.8]} 26. Qc3 {[%clk 0:01:10.3]} 26... Bxe4+
{[%clk 0:01:06.8]} 27. Ka1 {[%clk 0:01:10.1]} 27... Nc6 {[%clk 0:00:37.9]} 28.
Qg3 {[%clk 0:00:53.4]} 28... Rh1 {[%clk 0:00:29.8]} 29. f6 {[%clk 0:00:53.2]}
29... gxf6 {[%clk 0:00:23.2]} 30. gxf6 {[%clk 0:00:53.3]} 30... Qd7 {[%clk
0:00:21.5]} 31. Re1 {[%clk 0:00:39.7]} 31... Bd5 {[%clk 0:00:20.5]} 32. Bg1
{[%clk 0:00:28.1]} 32... Kb7 {[%clk 0:00:19.5]} 33. Qe3 {[%clk 0:00:27.3]} 33...
Qc7 {[%clk 0:00:19.2]} 34. Bd3 {[%clk 0:00:24.8]} 34... Kc8 {[%clk 0:00:13.7]}
35. Rc1 {[%clk 0:00:24.2]} 35... Kd7 {[%clk 0:00:13.3]} 36. Qg3 {[%clk
0:00:20.5]} 36... Qd8 {[%clk 0:00:12.4]} 37. Qg7 {[%clk 0:00:19.9]} 37... Qe8
{[%clk 0:00:11.8]} 38. Bg6 {[%clk 0:00:17.3]} 38... e5 {[%clk 0:00:11.2]} 39.
Bf5+ {[%clk 0:00:14.5]} 39... Kc7 {[%clk 0:00:11.1]} 40. Qg4 {[%clk 0:00:11]}
40... Qh8 {[%clk 0:00:07.6]} 41. Be4 {[%clk 0:00:10.9]} 41... Bxe4 {[%clk
0:00:03.5]} 42. Qxe4 {[%clk 0:00:11.8]} 42... Qe8 {[%clk 0:00:03.6]} 43. Qxh1
{[%clk 0:00:11.4]} 43... Qe6 {[%clk 0:00:04]} 44. Qxc6+ {[%clk 0:00:10.5]} 1-0